bitfinex/quotes_SOLUSD_20250717
["timestamp","ask_amount","ask_price","bid_price","bid_amount"]
[1752742871884,5.75837844,173.66,173.62,26.7]
[1752742872085,5.75837844,173.66,173.65,5.42131945]
[1752742874905,5.75837844,173.66,173.62,26.7]
[1752742875081,5.75837844,173.66,173.64,5.42131945]
[1752742875282,5.75837844,173.66,173.65,5.42131945]
[1752742877984,5.75837844,173.66,173.62,114.8]
[1752742878188,5.75837844,173.66,173.65,5.42131945]
[1752742880796,31.52,173.67,173.65,5.42131945]
[1752742881012,30.86,173.67,173.66,6.12131945]
[1752742881315,5.75748007,173.69,173.66,6.12131945]
[1752742881532,36.45748007,173.69,173.67,5.42131945]
[1752742881824,36.45748007,173.69,173.66,5.42131945]
[1752742882123,37.11748007,173.69,173.66,5.42131945]
[1752742882284,0.66,173.68,173.66,5.42131945]
[1752742883889,42.51936632,173.67,173.64,88.1]
[1752742884119,0.66,173.66,173.64,88.1]
[1752742884292,30.68,173.65,173.64,88.1]
[1752742884595,31.34,173.65,173.64,88.1]
[1752742884802,36.76131945,173.65,173.64,88.1]
[1752742885531,36.76131945,173.65,173.58,57.76504387]
[1752742885834,5.76003686,173.61,173.58,57.76504387]
[1752742886031,31.34,173.6,173.57,63.18636332]
[1752742886243,0.66,173.59,173.58,1.28]
[1752742886443,30.68,173.6,173.57,57.76504387]
[1752742886824,5.7607005,173.59,173.57,57.76504387]
[1752742887134,36.44046301,173.6,173.58,5.42131945]
[1752742887809,36.44046301,173.6,173.57,63.18636332]
[1752742888228,36.44046301,173.6,173.57,63.88636332]
[1752742888649,36.44046301,173.6,173.57,63.18636332]
[1752742888844,0.66,173.59,173.57,57.76504387]
[1752742889818,0.66,173.59,173.56,63.18636332]
[1752742890017,5.76103237,173.58,173.56,63.18636332]
[1752742890228,5.76103237,173.58,173.57,5.42131945]
[1752742891016,36.44062469,173.6,173.57,5.42131945]
[1752742891224,36.44062469,173.6,173.59,5.42131945]
[1752742891835,36.44062469,173.6,173.58,5.42131945]
[1752742892434,5.42131945,173.59,173.53,57.76504387]
[1752742892735,36.04131945,173.58,173.53,5.42131945]
[1752742893037,30.62,173.58,173.55,5.42131945]
[1752742893206,30.62,173.58,173.56,6.12131945]
[1752742893531,30.76,173.59,173.57,5.42131945]
[1752742893835,30.76,173.59,173.57,6.12131945]
[1752742894023,30.76,173.59,173.57,0.7]
[1752742894227,30.76,173.59,173.57,6.12131945]
[1752742894423,5.76103237,173.58,173.57,6.12131945]
[1752742895028,5.76103237,173.58,173.57,5.42131945]
[1752742895644,20.84361331,173.58,173.53,0.7]
[1752742895935,31.44,173.57,173.53,57.76504387]
[1752742896121,0.68,173.56,173.53,57.76504387]
[1752742896440,30.76,173.57,173.53,63.18636332]
[1752742896644,5.76169624,173.56,173.54,5.42131945]
[1752742897945,5.76169624,173.56,173.53,57.76504387]
[1752742898113,6.44169624,173.56,173.53,63.18636332]
[1752742898638,5.76236026,173.54,173.52,5.45131945]
[1752742899010,5.76236026,173.54,173.53,5.42131945]
[1752742899516,5.76236026,173.54,173.52,0.73]
[1752742899720,5.76236026,173.54,173.52,0.03]
[1752742900040,5.76236026,173.54,173.53,5.42131945]
[1752742901327,5.76236026,173.54,173.52,0.03]
[1752742901747,6.44236026,173.54,173.52,0.03]
[1752742902047,30.66,173.53,173.52,0.03]
[1752742902221,31.34,173.53,173.52,0.03]
[1752742903138,37.10269232,173.53,173.52,0.03]
[1752742903533,42.52401177,173.53,173.52,0.03]
[1752742904237,42.52401177,173.53,173.51,0.03]
[1752742904427,6.10131945,173.52,173.5,0.03]
[1752742904629,36.06131945,173.51,173.5,0.03]
[1752742904950,36.74131945,173.51,173.5,0.03]
[1752742905124,37.08335657,173.51,173.5,0.03]
[1752742907044,42.50467602,173.51,173.48,0.03]
[1752742907243,0.68,173.5,173.48,0.03]
[1752742907448,30.6,173.49,173.48,0.03]
[1752742907939,31.28,173.49,173.48,0.03]
[1752742909051,20.16719304,173.55,173.48,6.15131945]
[1752742909344,30.92,173.54,173.49,0.7]
[1752742909527,30.92,173.54,173.52,5.42131945]
[1752742909722,0.68,173.53,173.52,5.42131945]
[1752742910029,5.76202823,173.55,173.52,6.12131945]
[1752742910234,5.76202823,173.55,173.54,5.42131945]
[1752742911142,5.76202823,173.55,173.54,0.7]
[1752742911549,5.76202823,173.55,173.54,5.42131945]
[1752742911840,5.76202823,173.55,173.5,1.5548]
[1752742912049,6.44202823,173.55,173.54,5.42131945]
[1752742912545,5.76202823,173.55,173.54,5.42131945]
[1752742912743,20.84709881,173.55,173.53,5.42131945]
[1752742913633,5.76202823,173.55,173.54,5.42131945]
[1752742915949,5.76202823,173.55,173.51,0.7]
[1752742916130,30.86,173.54,173.53,5.42131945]
[1752742917352,36.62236026,173.54,173.53,5.42131945]
[1752742918433,5.76236026,173.54,173.53,5.42131945]
[1752742918741,5.76236026,173.54,173.53,6.12131945]
[1752742919456,5.76202823,173.55,173.53,63.88636332]
[1752742919632,5.76202823,173.55,173.54,5.42131945]
[1752742919838,5.76202823,173.55,173.54,6.12131945]
[1752742921427,14.40318376,173.58,173.54,6.12131945]
[1752742921623,14.40318376,173.58,173.56,5.42131945]
[1752742922457,14.40318376,173.58,173.57,5.42131945]
[1752742923338,14.40318376,173.58,173.57,6.10131945]
[1752742923545,14.40318376,173.58,173.57,5.42131945]
[1752742924151,5.7607005,173.59,173.57,6.10131945]
[1752742924343,5.7607005,173.59,173.58,6.10131945]
[1752742924655,5.7607005,173.59,173.58,63.86636332]
[1752742924838,5.82045754,173.6,173.58,63.86636332]
[1752742925038,5.82045754,173.6,173.59,6.10131945]
[1752742925248,0.06,173.6,173.59,6.10131945]
[1752742925932,0.06,173.6,173.59,36.84131945]
[1752742926459,0.06,173.6,173.59,42.2626389]
[1752742926779,0.06,173.6,173.59,36.84131945]
[1752742927160,0.06,173.6,173.59,42.2626389]
[1752742927454,0.06,173.6,173.59,100.02768277]
[1752742927866,0.06,173.6,173.59,118.32716674]
[1752742928034,5.75837844,173.66,173.62,26.0]
[1752742928239,5.75837844,173.66,173.63,0.68]
[1752742928453,5.75837844,173.66,173.65,5.42131945]
[1752742929254,6.47837844,173.66,173.65,5.42131945]
[1752742929557,6.47837844,173.66,173.62,63.18636332]
[1752742929558,20.87432454,173.66,173.62,63.18636332]
[1752742929764,0.72,173.65,173.62,63.18636332]
[1752742930235,0.72,173.64,173.62,63.18636332]
[1752742931063,5.48131945,173.67,173.63,48.88600342]
[1752742931064,0.06,173.67,173.63,48.88600342]
[1752742931259,5.81813266,173.67,173.64,0.68]
[1752742931564,0.06,173.67,173.65,5.42131945]
[1752742931773,0.06,173.67,173.66,5.42131945]
[1752742932642,0.06,173.7,173.69,42.78468397]
[1752742932990,0.1,173.75,173.7,16.78468397]
[1752742933135,0.1,173.75,173.73,22.80168397]
[1752742933335,0.06,173.76,173.74,36.22131945]
[1752742933532,5.75241601,173.84,173.75,7.08011945]
[1752742933750,5.75241601,173.84,173.82,5.42131945]
[1752742933969,5.75241601,173.84,173.83,5.42131945]
[1752742934137,17.37399616,173.88,173.83,6.10131945]
[1752742934335,14.37811526,173.88,173.86,5.42131945]
[1752742934766,5.75142347,173.87,173.86,5.42131945]
[1752742935060,32.4767,173.92,173.86,5.42131945]
[1752742935061,13.68239583,173.92,173.86,7.93262583]
[1752742935236,0.72,173.91,173.86,7.93262583]
[1752742935441,0.72,173.9,173.86,7.93262583]
[1752742935638,20.12419502,173.92,173.88,7.93262583]
[1752742935876,0.72,173.91,173.87,0.68]
[1752742936076,5.74910888,173.94,173.9,7.93262583]
[1752742936240,5.74910888,173.94,173.88,0.68]
[1752742936241,5.74910888,173.94,173.93,7.93262583]
[1752742937563,5.74844791,173.96,173.93,7.93262583]
[1752742937762,5.74844791,173.96,173.94,7.93262583]
[1752742938071,5.74844791,173.96,173.95,7.93262583]
[1752742938654,5.74844791,173.96,173.94,7.93262583]
[1752742939393,20.8395677,173.96,173.93,7.93262583]
[1752742940182,20.8395677,173.96,173.9,0.68]
[1752742940356,20.8395677,173.96,173.94,7.93262583]
[1752742940771,20.8395677,173.96,173.93,7.93262583]
[1752742942174,20.1195677,173.96,173.94,7.93262583]
[1752742942373,20.1195677,173.96,173.88,73.60468397]
[1752742942374,20.1195677,173.96,173.95,7.93262583]
[1752742942577,20.1195677,173.96,173.94,7.93262583]
[1752742942790,20.1195677,173.96,173.91,0.68]
[1752742942961,20.1195677,173.96,173.94,7.93262583]
[1752742943404,20.1195677,173.96,173.92,0.68]
[1752742943562,20.1195677,173.96,173.95,7.93262583]
[1752742943961,20.1195677,173.96,173.94,7.93262583]
[1752742944170,14.37111979,173.96,173.94,7.93262583]
[1752742944890,14.37111979,173.96,173.89,0.68]
[1752742944891,0.72,173.95,173.89,0.68]
[1752742945074,0.72,173.95,173.93,7.93262583]
[1752742945272,14.37111979,173.96,173.94,7.93262583]
[1752742946172,20.1195677,173.96,173.94,7.93262583]
[1752742946859,20.1195677,173.96,173.95,7.93262583]
[1752742947376,5.74844791,173.96,173.95,7.93262583]
[1752742948097,5.80844791,173.96,173.91,26.0]
[1752742948304,0.06,173.96,173.95,7.93262583]
[1752742950274,0.06,173.96,173.95,8.61262583]
[1752742950877,0.06,173.96,173.93,0.68]
[1752742951068,0.06,173.96,173.95,7.93262583]
[1752742951574,0.06,173.96,173.94,0.68]
[1752742951776,0.06,173.96,173.92,0.7]
[1752742951984,0.06,173.96,173.91,26.0]
[1752742951985,0.06,173.96,173.95,7.93262583]
[1752742952190,0.06,173.96,173.94,6.5344]
[1752742952374,0.06,173.96,173.95,0.7]
[1752742952696,0.06,173.96,173.94,6.5344]
[1752742952991,0.06,173.96,173.92,31.36]
[1752742953169,0.06,173.96,173.95,7.93262583]
[1752742953783,0.06,173.96,173.95,8.63262583]
[1752742956474,0.06,173.96,173.95,7.93262583]
[1752742956993,0.06,173.96,173.93,0.7]
[1752742957196,0.06,173.96,173.95,5.4043557]
[1752742957784,0.06,173.96,173.95,6.1043557]
[1752742958797,0.06,173.96,173.95,0.7]
[1752742958980,0.06,173.96,173.95,6.1043557]
[1752742963096,0.06,173.96,173.95,5.4043557]
[1752742963495,0.06,173.96,173.9,88.1]
[1752742963805,0.06,173.96,173.95,5.4043557]
[1752742964184,0.74,173.96,173.91,31.22]
[1752742964403,0.74,173.96,173.89,0.7]
[1752742964613,0.74,173.96,173.92,5.4043557]
[1752742965307,0.74,173.96,173.9,28.11]
[1752742965308,0.68,173.95,173.93,5.4043557]
[1752742965700,0.68,173.95,173.9,28.81]
[1752742965891,0.06,173.96,173.93,5.4043557]
[1752742966208,0.06,173.96,173.95,5.4043557]
[1752742966587,0.06,173.96,173.95,6.1043557]
[1752742979611,0.06,173.96,173.95,36.5043557]
[1752742979809,14.42596169,174.03,173.98,26.0]
[1752742979810,5.74657748,174.02,173.98,26.0]
[1752742980111,5.74657748,174.02,174.01,5.4043557]
[1752742980323,0.06,174.03,174.01,5.4043557]
[1752742980619,0.06,174.03,174.02,5.4043557]
[1752742982611,0.06,174.03,174.0,0.71]
[1752742982793,0.68,174.02,173.97,0.71]
[1752742982994,0.68,174.02,173.99,5.4043557]
[1752742983834,5.74679616,174.01,173.99,5.4043557]
[1752742984012,6.42679616,174.01,174.0,5.4043557]
[1752742984331,5.74679616,174.01,173.97,26.0]
[1752742984503,5.74679616,174.01,174.0,5.4043557]
[1752742986026,5.74646592,174.02,173.98,0.71]
[1752742986224,5.74646592,174.02,174.01,5.4043557]
[1752742986929,5.74646592,174.02,174.01,16.1143557]
[1752742987806,5.74646592,174.02,174.01,15.4043557]
[1752742988122,0.06,174.03,174.01,15.4043557]
[1752742988356,0.06,174.03,174.02,6.1143557]
[1752742988502,0.06,174.03,174.02,7.7769557]
[1752742988839,5.74448529,174.08,174.02,38.3769557]
[1752742989039,5.74448529,174.08,174.07,5.4043557]
[1752742989341,5.74448529,174.08,174.07,6.1143557]
[1752742989705,5.74448529,174.08,174.02,32.2626]
[1752742989706,6.42448529,174.08,174.03,0.71]
[1752742989914,5.74448529,174.08,174.06,5.4043557]
[1752742990141,0.06,174.09,174.06,5.4043557]
[1752742990349,0.06,174.09,174.08,5.4043557]
[1752742990737,0.74,174.09,174.05,0.71]
[1752742991044,0.74,174.09,174.06,5.4043557]
[1752742991450,0.06,174.09,174.06,0.71]
[1752742991618,0.06,174.09,174.07,5.4043557]
[1752742991825,0.06,174.09,174.08,5.4043557]
[1752742992467,0.06,174.09,174.08,6.1143557]
[1752742993133,0.06,174.09,174.08,0.71]
[1752742993331,0.06,174.09,174.08,32.1143557]
[1752742994327,0.06,174.09,174.08,62.43229537]
[1752742994529,5.84260176,174.14,174.08,62.43229537]
[1752742994530,0.1,174.14,174.08,156.27678066]
[1752742994729,15.89311128,174.24,174.08,156.27678066]
[1752742994730,0.68,174.24,174.16,26.0]
[1752742995031,0.68,174.24,174.22,5.4043557]
[1752742995234,5.73984076,174.23,174.17,0.71]
[1752742995546,5.73984076,174.23,174.22,5.4043557]
[1752742996057,5.73690551,174.31,174.23,16.78468397]
[1752742996260,5.73690551,174.31,174.3,5.4043557]
[1752742996547,5.73690551,174.31,174.22,31.83577768]
[1752742996748,0.68,174.3,174.22,26.0]
[1752742996935,5.4043557,174.29,174.24,5.4043557]
[1752742997256,20.75916929,174.31,174.27,5.4043557]
[1752742997440,20.75916929,174.31,174.18,30.8]
[1752742997441,6.41690551,174.31,174.29,5.4043557]
[1752742997649,5.73690551,174.31,174.3,5.4043557]
[1752742997954,5.73624734,174.33,174.3,5.4043557]
[1752742998258,5.73624734,174.33,174.32,5.4043557]
[1752742998837,5.73526038,174.36,174.32,6.9543557]
[1752742999024,5.73526038,174.36,174.35,8.60641888]
[1752742999225,5.73460259,174.38,174.35,0.71]
[1752742999425,5.73460259,174.38,174.37,8.60641888]
[1752742999653,6.41460259,174.38,174.35,8.60641888]
[1752742999841,5.73460259,174.38,174.37,8.60641888]
[1752743000231,5.93048527,174.39,174.37,9.31641888]
[1752743000541,5.93048527,174.39,174.38,8.60641888]
[1752743000942,5.9304443,174.39,174.38,9.31641888]
[1752743001146,0.19617055,174.39,174.38,9.31641888]
[1752743001448,0.19617055,174.39,174.38,0.71]
[1752743001651,0.19617055,174.39,174.38,2.05]
[1752743001826,0.19617055,174.39,174.38,10.65641888]
[1752743002026,5.9304443,174.39,174.38,2.05]
[1752743002235,15.21686318,174.39,174.38,2.05]
[1752743002433,15.21686318,174.39,174.34,8.60641888]
[1752743002434,20.94612868,174.39,174.34,8.60641888]
[1752743002638,8.60641888,174.37,174.3,0.71]
[1752743002839,20.26612868,174.39,174.29,0.86345167]
[1752743002840,9.28641888,174.36,174.29,0.86345167]
[1752743003040,0.68,174.35,174.29,0.86345167]
[1752743003237,8.60641888,174.32,174.27,8.60641888]
[1752743003451,0.68,174.34,174.29,8.60641888]
[1752743003634,0.68,174.34,174.31,23.35641888]
[1752743003833,0.68,174.34,174.31,14.75]
[1752743004053,5.73657641,174.32,174.31,14.75]
[1752743004255,6.41657641,174.32,174.31,14.75]
[1752743004950,29.36443631,174.32,174.26,8.60641888]
[1752743005154,9.28641888,174.31,174.26,8.60641888]
[1752743005354,0.68,174.3,174.26,8.60641888]
[1752743005537,0.68,174.3,174.27,8.60641888]
[1752743005738,8.60641888,174.29,174.24,8.60641888]
[1752743006067,5.73888091,174.25,174.19,1.49707533]
[1752743006350,5.73888091,174.25,174.22,8.60641888]
[1752743006564,6.41888091,174.25,174.23,8.60641888]
[1752743006743,6.41888091,174.25,174.22,8.60641888]
[1752743007132,20.7660832,174.25,174.19,27.49707533]
[1752743007367,20.7660832,174.25,174.22,8.60641888]
[1752743007862,0.68,174.24,174.2,8.60641888]
[1752743008047,0.68,174.24,174.21,8.60641888]
[1752743008254,5.73953968,174.23,174.17,0.71]
[1752743008445,5.73953968,174.23,174.21,8.60641888]
[1752743008954,5.73953968,174.23,174.17,0.71]
[1752743009255,5.73953968,174.23,174.22,8.60641888]
[1752743009760,5.73953968,174.23,174.21,8.60641888]
[1752743010134,5.73888091,174.25,174.22,8.60641888]
[1752743010349,5.73888091,174.25,174.19,26.0]
[1752743010350,5.73888091,174.25,174.23,8.60641888]
[1752743011155,0.68,174.24,174.18,26.71]
[1752743011357,0.68,174.24,174.21,8.60641888]
[1752743011532,0.68,174.24,174.18,26.71]
[1752743011533,20.0860832,174.25,174.22,8.60641888]
[1752743011730,20.7860832,174.25,174.22,8.60641888]
[1752743012136,0.7,174.24,174.18,26.71]
[1752743012358,0.7,174.24,174.2,8.60641888]
[1752743012541,0.7,174.24,174.21,8.60641888]
[1752743012938,5.73888091,174.25,174.23,8.60641888]
[1752743013346,6.43888091,174.25,174.22,8.60641888]
[1752743013546,9.30641888,174.24,174.2,8.60641888]
[1752743013745,8.60641888,174.24,174.2,8.60641888]
[1752743013942,0.7,174.23,174.16,0.7]
[1752743014165,5.73986913,174.22,174.19,8.60641888]
[1752743014356,6.43986913,174.22,174.19,8.60641888]
[1752743014554,6.43986913,174.22,174.2,8.60641888]
[1752743014761,5.73986913,174.22,174.21,8.60641888]
[1752743015342,5.73950573,174.24,174.21,9.30641888]
[1752743015550,5.73950573,174.24,174.22,8.60641888]
[1752743015745,5.73950573,174.24,174.23,8.60641888]
[1752743016153,5.73822229,174.27,174.23,8.60641888]
[1752743016352,5.73822229,174.27,174.26,8.60641888]
[1752743016556,0.7,174.3,174.26,8.60641888]
[1752743016845,0.7,174.3,174.24,0.7]
[1752743016846,0.7,174.3,174.28,8.60641888]
[1752743017046,14.34181106,174.32,174.29,8.60641888]
[1752743017253,6.43690551,174.31,174.29,8.60641888]
[1752743017654,5.73690551,174.31,174.29,8.60641888]
[1752743018170,20.07838747,174.32,174.29,8.60641888]
[1752743018468,0.7,174.31,174.29,8.60641888]
[1752743019172,20.07838747,174.32,174.3,8.60641888]
[1752743019173,5.73657641,174.32,174.3,8.60641888]
[1752743019760,20.77801743,174.32,174.29,8.60641888]
[1752743019963,0.7,174.31,174.26,0.7]
[1752743020264,5.73723465,174.3,174.29,8.60641888]
[1752743020669,5.73460259,174.38,174.32,26.0]
[1752743020872,5.73460259,174.38,174.37,8.60641888]
[1752743021043,5.73460259,174.38,174.32,26.0]
[1752743021044,20.77110907,174.38,174.35,8.60641888]
[1752743021248,0.7,174.37,174.35,8.60641888]
[1752743021450,20.07110907,174.38,174.36,8.60641888]
[1752743022070,9.30641888,174.37,174.32,8.60641888]
[1752743022255,20.77341133,174.36,174.32,8.60641888]
[1752743022455,0.7,174.35,174.31,8.60641888]
[1752743022651,30.91617055,174.39,174.35,16.78468397]
[1752743022652,0.19617055,174.39,174.35,16.78468397]
[1752743022854,0.19617055,174.39,174.34,8.60641888]
[1752743022855,0.19617055,174.39,174.38,25.39110285]
[1752743023051,0.19617055,174.39,174.38,16.78468397]
[1752743023263,0.19617055,174.39,174.38,26.09110285]
[1752743023481,0.19617055,174.39,174.38,56.83110285]
[1752743024558,0.19617055,174.39,174.38,31.44]
[1752743024763,0.19617055,174.39,174.38,40.04641888]
[1752743025389,0.19617055,174.39,174.38,56.83110285]
[1752743025874,0.19617055,174.39,174.38,48.22468397]
[1752743026182,0.06,174.4,174.38,56.83110285]
[1752743026375,0.06,174.4,174.39,26.09110285]
[1752743026962,0.06,174.4,174.39,56.79110285]
[1752743027162,0.06,174.4,174.39,26.09110285]
[1752743027671,0.06,174.4,174.39,56.79110285]
[1752743029158,0.06,174.4,174.39,56.77110285]
[1752743029567,0.06,174.4,174.39,26.09110285]
[1752743029760,0.06,174.4,174.39,35.30641888]
[1752743030175,0.06,174.4,174.39,8.60641888]
[1752743030562,0.76,174.4,174.39,8.60641888]
[1752743030783,0.76,174.4,174.38,8.60641888]
[1752743030972,0.76,174.4,174.39,8.60641888]
[1752743031166,0.06,174.4,174.39,26.09110285]
[1752743031484,0.06,174.4,174.39,56.73110285]
[1752743033482,0.06,174.4,174.39,39.94641888]
[1752743033671,0.06,174.4,174.39,41.69641888]
[1752743033986,0.06,174.4,174.39,41.67641888]
[1752743035888,0.06,174.4,174.39,41.70641888]
[1752743036064,0.06,174.4,174.39,33.1]
[1752743036265,0.06,174.4,174.39,41.70641888]
[1752743039869,6.43197294,174.46,174.39,33.1]
[1752743040095,6.43197294,174.46,174.4,0.7]
[1752743040292,20.0619053,174.46,174.41,30.56]
[1752743040487,5.73263013,174.44,174.4,0.08]
[1752743040688,5.73263013,174.44,174.43,8.60641888]
[1752743040871,5.73263013,174.44,174.4,0.08]
[1752743040872,29.37062433,174.44,174.4,0.08]
[1752743041078,29.37062433,174.44,174.4,1e-08]
[1752743041079,8.60641888,174.41,174.4,1e-08]
[1752743041280,8.7816,174.43,174.4,1e-08]
[1752743041587,0.72,174.43,174.4,1e-08]
[1752743041778,0.72,174.43,174.42,8.60641888]
[1752743041977,0.72,174.43,174.42,8.68641888]
[1752743042187,0.72,174.43,174.42,0.08]
[1752743042487,5.73328746,174.42,174.39,0.03]
[1752743042666,14.33970634,174.42,174.39,0.03]
[1752743042997,0.72,174.41,174.39,0.03]
[1752743043684,0.72,174.4,174.39,0.03]
[1752743044469,6.45394495,174.4,174.39,8.63641888]
[1752743044672,6.45394495,174.4,174.39,0.03]
[1752743045596,6.45394495,174.4,174.39,8.63641888]
[1752743045902,6.45394495,174.4,174.39,0.03]
[1752743046670,6.45394495,174.4,174.39,8.63641888]
[1752743047174,5.73394495,174.4,174.39,8.63641888]
[1752743047589,6.45394495,174.4,174.39,0.03]
[1752743047895,6.45394495,174.4,174.39,1e-08]
[1752743048086,15.06036383,174.4,174.39,1e-08]
[1752743048289,6.45394495,174.4,174.39,1e-08]
[1752743050392,5.73394495,174.4,174.39,8.60641889]
[1752743050777,5.73394495,174.4,174.39,1e-08]
[1752743050974,6.45394495,174.4,174.39,1e-08]
[1752743052504,6.45394495,174.4,174.39,8.60641889]
[1752743052880,5.73394495,174.4,174.39,8.60641889]
[1752743053087,5.73361619,174.41,174.39,5.37790253]
[1752743053280,5.73361619,174.41,174.4,5.37790252]
[1752743054299,5.73361619,174.41,174.39,1e-08]
[1752743054485,5.73361619,174.41,174.4,5.37790252]
[1752743055106,5.73295878,174.43,174.4,5.37790252]
[1752743055301,5.73295878,174.43,174.42,5.37790252]
[1752743055616,5.73197294,174.46,174.42,6.03790252]
[1752743055917,5.73197294,174.46,174.42,0.66]
[1752743056104,6.45197294,174.46,174.44,5.37790252]
[1752743056308,5.73197294,174.46,174.45,5.37790252]
[1752743056683,32.2761,174.51,174.45,5.37790252]
[1752743056886,37.65400252,174.51,174.45,5.37790252]
[1752743057192,5.37790252,174.5,174.45,5.37790252]
[1752743057392,32.2761,174.51,174.47,5.37790252]
[1752743057791,20.05788179,174.5,174.46,5.37790252]
[1752743058013,20.05788179,174.5,174.45,5.37790252]
[1752743058314,25.43578431,174.5,174.45,5.37790252]
[1752743058493,20.05788179,174.5,174.46,5.37790252]
[1752743058696,20.05788179,174.5,174.45,5.37790252]
[1752743058697,25.43578431,174.5,174.45,5.37790252]
[1752743058891,0.69,174.49,174.45,5.37790252]
[1752743059091,5.73131591,174.48,174.45,5.37790252]
[1752743059496,5.73131591,174.48,174.46,5.37790252]
[1752743059814,5.73131591,174.48,174.43,0.66]
[1752743059994,5.73131591,174.48,174.46,5.37790252]
[1752743059995,20.05960568,174.48,174.46,5.37790252]
[1752743060194,20.74960568,174.48,174.43,0.66]
[1752743060402,6.06790252,174.47,174.43,5.37790252]
[1752743060606,0.69,174.46,174.43,5.37790252]
[1752743060806,20.74960568,174.48,174.44,5.37790252]
[1752743061790,20.05960568,174.48,174.45,5.37790252]
[1752743062206,20.05960568,174.48,174.4,5.37790252]
[1752743062409,0.69,174.47,174.4,0.66]
[1752743062601,6.06790252,174.47,174.42,5.37790252]
[1752743062790,6.06790252,174.46,174.41,5.37790252]
[1752743062989,0.69,174.45,174.42,5.37790252]
[1752743063391,6.42263013,174.44,174.41,5.37790252]
[1752743063591,0.69,174.43,174.39,1e-08]
[1752743063794,0.69,174.43,174.4,5.37790252]
[1752743064501,0.69,174.42,174.4,5.37790252]
[1752743064698,0.69,174.42,174.39,5.37790253]
[1752743064895,0.69,174.42,174.39,1e-08]
[1752743065203,0.69,174.42,174.4,5.37790252]
[1752743065606,5.73361619,174.41,174.4,5.37790252]
[1752743066011,5.73361619,174.41,174.39,5.37790253]
[1752743066392,5.73361619,174.41,174.39,1e-08]
[1752743066393,0.69,174.4,174.39,1e-08]
[1752743066895,11.11151871,174.41,174.39,1e-08]
[1752743067101,0.69,174.4,174.39,1e-08]
[1752743067704,6.42394495,174.4,174.39,1e-08]
[1752743069109,5.73394495,174.4,174.39,1e-08]
[1752743069826,2.3275,174.42,174.39,1e-08]
[1752743069827,5.73361619,174.41,174.39,1e-08]
[1752743070124,5.73361619,174.41,174.39,5.37790253]
[1752743070338,5.73361619,174.41,174.4,0.66]
[1752743070498,5.73361619,174.41,174.4,6.03790252]
[1752743070915,5.73361619,174.41,174.4,0.66]
[1752743071122,5.73361619,174.41,174.4,6.03790252]
[1752743071705,5.73263013,174.44,174.4,6.03790252]
[1752743071914,5.73263013,174.44,174.43,5.37790252]
[1752743072218,5.7316444,174.47,174.43,6.05790252]
[1752743072410,5.7316444,174.47,174.45,5.37790252]
[1752743072612,5.7316444,174.47,174.42,0.68]
[1752743072819,20.06075542,174.47,174.45,5.37790252]
[1752743073133,20.74075542,174.47,174.44,5.37790252]
[1752743073830,20.74075542,174.47,174.45,5.37790252]
[1752743074133,0.68,174.46,174.43,5.37790252]
[1752743074702,31.26,174.45,174.39,1e-08]
[1752743074916,31.26,174.45,174.42,5.37790252]
[1752743075123,30.58,174.45,174.43,5.37790252]
[1752743075533,20.06075542,174.47,174.44,5.37790252]
[1752743075830,5.7316444,174.47,174.46,5.37790252]
[1752743076021,5.7316444,174.47,174.45,5.37790252]
[1752743076328,5.7316444,174.47,174.46,5.37790252]
[1752743076958,5.7316444,174.47,174.46,6.05790252]
[1752743077302,5.7316444,174.47,174.46,0.68]
[1752743077529,5.7316444,174.47,174.46,6.05790252]
[1752743078033,5.73098744,174.49,174.41,7.9613]
[1752743078327,5.73098744,174.49,174.46,5.37790252]
[1752743078743,5.73098744,174.49,174.47,5.37790252]
[1752743079022,5.73098744,174.49,174.46,5.37790252]
[1752743079226,5.73098744,174.49,174.47,5.37790252]
[1752743080123,36.3307179,174.5,174.48,5.37790252]
[1752743080330,5.7307179,174.5,174.49,5.37790252]
[1752743082036,5.73033064,174.51,174.46,0.68]
[1752743082216,5.73033064,174.51,174.49,5.37790252]
[1752743082426,6.41033064,174.51,174.49,5.37790252]
[1752743082612,5.73033064,174.51,174.49,5.37790252]